fUST/lending_fUST_20250613
["ID","MTS","AMOUNT","RATE_DAILY","PERIOD"]
[365620932,1749810640560,-601.68,0.00021643,4]
[365620933,1749810640569,-935.51,0.00021643,4]
[365620934,1749810640586,-853.76,0.00021643,4]
[365620935,1749810640602,-460.0,0.00021643,4]
[365620936,1749810640615,-460.0,0.00021643,4]
[365620937,1749810640629,-528.79,0.00021643,4]
[365620938,1749810640642,-420.0,0.00021643,4]
[365620939,1749810640654,-400.0,0.00021643,4]
[365620940,1749810640667,-460.0,0.00021643,4]
[365620941,1749810640680,-400.0,0.00021643,4]
[365620942,1749810640691,-699.27652527,0.00021728,5]
[365620943,1749810640704,-420.0,0.00021776,2]
[365620944,1749810640720,-699.27652527,0.00021866,6]
[365620945,1749810640733,-1080.3,0.00021915,2]
[365620946,1749810640747,-591.0,0.00021917,4]
[365620947,1749810640761,-330.0,0.00021917,4]
[365620948,1749810640775,-493.37,0.00021917,2]
[365620949,1749810640790,-740.32,0.00021917,4]
[365620950,1749810640803,-460.0,0.00021917,4]
[365620954,1749810640815,-460.0,0.00021917,4]
[365620956,1749810640828,-705.23,0.00021917,4]
[365620959,1749810640847,-530.67,0.00021917,4]
[365620961,1749810640869,-460.0,0.00021917,4]
[365620963,1749810640890,-839.17,0.00021917,4]
[365620965,1749810640913,-460.0,0.00021917,4]
[365620967,1749810640936,-460.0,0.00021917,4]
[365620969,1749810640958,-460.0,0.00021917,4]
[365620971,1749810640982,-460.0,0.00021917,4]
[365620973,1749810641003,-460.0,0.00021917,4]
[365620975,1749810641025,-460.0,0.00021917,4]
[365620978,1749810641047,-460.0,0.00021917,4]
[365620980,1749810641070,-934.01,0.00021917,4]
[365620982,1749810641093,-1790.77,0.00021917,4]
[365620984,1749810641118,-460.0,0.00021917,4]
[365620986,1749810641140,-201.14646725,0.00021917,4]
[365620989,1749810641153,-460.0,0.00021917,4]
[365620991,1749810641165,-601.68,0.00021917,4]
[365620993,1749810641177,-935.51,0.00021917,4]
[365620996,1749810641190,-853.76,0.00021917,4]
[365620998,1749810641202,-460.0,0.00021917,4]
[365621000,1749810641216,-400.0,0.00021917,4]
[365621003,1749810641228,-528.79,0.00021917,4]
[365621005,1749810641238,-380.0,0.00021917,4]
[365621007,1749810641247,-30496.0,0.00022,30]
[365621009,1749810641258,-315.3059208,0.00022,30]
[365621011,1749810641268,-844.94977992,0.00022,30]
[365621013,1749810641280,-182.0,0.00022,2]
[365621016,1749810641291,-1080.3,0.00022003,2]
[365621018,1749810641305,-699.27652527,0.00022003,6]
[365621020,1749810641317,-185.95624799,0.00022044,2]
[365621022,1749810641327,-500.0,0.0002206,2]
[365621024,1749810641338,-160.0,0.00022085,2]
[365621027,1749810641351,-160.0,0.00022085,2]
[365621029,1749810641363,-160.0,0.00022085,2]
[365621031,1749810641376,-213.24139183,0.00022085,2]
[365621034,1749810641388,-160.0,0.00022085,2]
[365621036,1749810641398,-160.0,0.00022085,2]
[365621038,1749810641409,-160.0,0.00022085,2]
[365621040,1749810641421,-160.0,0.00022085,2]
[365621043,1749810641435,-844.94977992,0.00022085,2]
[365621045,1749810641447,-500.0,0.00022087,2]
[365621047,1749810641459,-365.2062734,0.0002211,2]
[365621049,1749810641471,-365.2062734,0.0002211,2]
[365621052,1749810641483,-365.2062734,0.0002211,2]
[365621054,1749810641494,-365.2062734,0.0002211,2]
[365621055,1749810641505,-365.2062734,0.0002211,2]
[365621056,1749810641516,-732.039217,0.0002211,2]
[365621057,1749810641529,-699.27652527,0.00022141,6]
[365621058,1749810641541,-493.37,0.00022191,2]
[365621059,1749810641555,-740.32,0.00022191,4]
[365621060,1749810641567,-460.0,0.00022191,4]
[365621061,1749810641578,-460.0,0.00022191,4]
[365621062,1749810641590,-705.23,0.00022191,4]
[365621063,1749810641602,-530.67,0.00022191,4]
[365621064,1749810641614,-460.0,0.00022191,4]
[365621065,1749810641627,-839.17,0.00022191,4]
[365621066,1749810641639,-460.0,0.00022191,4]
[365621067,1749810641651,-460.0,0.00022191,4]
[365621068,1749810641663,-400.0,0.00022191,4]
[365621069,1749810641675,-585.95,0.00022191,4]
[365621070,1749810641687,-460.0,0.00022191,4]
[365621071,1749810641699,-460.0,0.00022191,4]
[365621072,1749810641712,-934.01,0.00022191,4]
[365621073,1749810641726,-1790.77,0.00022191,4]
[365621074,1749810641737,-460.0,0.00022191,4]
[365621075,1749810641748,-400.0,0.00022191,4]
[365621076,1749810641761,-601.68,0.00022191,4]
[365621077,1749810641772,-935.51,0.00022191,4]
[365621078,1749810641783,-853.76,0.00022191,4]
[365621079,1749810641797,-460.0,0.00022191,4]
[365621080,1749810641808,-528.79,0.00022191,4]
[365621081,1749810641820,-185.09474156,0.000222,69]
[365621082,1749810641832,-223.08,0.0002223,2]
[365621083,1749810641843,-466.07356246,0.00022245,2]
[365621084,1749810641857,-749.28,0.00022256,3]
[365621085,1749810641870,-699.27652527,0.00022279,6]
[365621086,1749810641882,-930.0,0.00022355,2]
[365621087,1749810641894,-749.28,0.00022356,7]
[365621088,1749810641905,-15315.21545608,0.00022365,2]
[365621089,1749810641916,-168.0,0.00022401,2]
[365621090,1749810641928,-699.27652527,0.00022417,7]
[365621091,1749810641939,-75598.69358536,0.0002245,2]
[365621092,1749810641950,-1080.3,0.00022456,2]
[365621093,1749810641962,-749.28,0.00022456,6]
[365621094,1749810641974,-493.37,0.00022465,2]
[365621095,1749810641985,-740.32,0.00022465,4]
[365621096,1749810641997,-1080.3,0.00022465,2]
[365621097,1749810642008,-460.0,0.00022465,4]
[365621098,1749810642019,-460.0,0.00022465,4]
[365621099,1749810642031,-705.23,0.00022465,4]
[365621100,1749810642042,-530.67,0.00022465,4]
[365621101,1749810642055,-839.17,0.00022465,4]
[365621102,1749810642066,-460.0,0.00022465,4]
[365621103,1749810642222,-460.0,0.00022465,4]
[365621104,1749810642242,-460.0,0.00022465,4]
[365621105,1749810642252,-460.0,0.00022465,4]
[365621106,1749810642262,-460.0,0.00022465,4]
[365621107,1749810642274,-934.01,0.00022465,4]
[365621108,1749810642284,-1790.77,0.00022465,4]
[365621109,1749810642294,-460.0,0.00022465,4]
[365621110,1749810642304,-601.68,0.00022465,4]
[365621111,1749810642314,-935.51,0.00022465,4]
[365621112,1749810642324,-853.76,0.00022465,4]
[365621113,1749810642333,-460.0,0.00022465,4]
[365621114,1749810642344,-528.79,0.00022465,4]
[365621115,1749810642354,-500.0,0.00022466,2]
[365621116,1749810642364,-500.0,0.00022466,2]
[365621117,1749810642374,-500.0,0.00022466,2]
[365621118,1749810642383,-500.0,0.00022466,2]
[365621119,1749810642393,-500.0,0.00022466,2]
[365621120,1749810642403,-299.24420898,0.00022466,2]
[365621121,1749810642413,-500.0,0.00022466,2]
[365621122,1749810642423,-500.0,0.00022466,2]
[365621123,1749810642433,-500.0,0.00022466,2]
[365621124,1749810642442,-500.0,0.00022466,2]
[365621125,1749810642452,-500.0,0.00022466,2]
[365621126,1749810642463,-500.0,0.00022466,2]
[365621127,1749810642474,-500.0,0.00022466,2]
[365621128,1749810642483,-500.0,0.00022466,2]
[365621129,1749810642494,-500.0,0.00022466,2]
[365621130,1749810642504,-500.0,0.00022466,2]
[365621131,1749810642513,-500.0,0.00022466,2]
[365621132,1749810642523,-500.0,0.00022466,2]
[365621133,1749810642533,-500.0,0.00022466,2]
[365621134,1749810642543,-500.0,0.00022466,2]
[365621135,1749810642552,-500.0,0.00022466,2]
[365621136,1749810642562,-500.0,0.00022466,2]
[365621137,1749810642571,-500.0,0.00022466,2]
[365621138,1749810642581,-500.0,0.00022466,2]
[365621139,1749810642591,-500.0,0.00022466,2]
[365621140,1749810642601,-500.0,0.00022466,2]
[365621141,1749810642613,-500.0,0.00022466,2]
[365621142,1749810642623,-500.0,0.00022466,2]
[365621143,1749810642633,-500.0,0.00022466,2]
[365621144,1749810642643,-500.0,0.00022466,2]
[365621145,1749810642653,-500.0,0.00022466,2]
[365621146,1749810642663,-500.0,0.00022466,2]
[365621147,1749810642672,-500.0,0.00022466,2]
[365621148,1749810642682,-500.0,0.00022466,2]
[365621149,1749810642691,-200.0,0.00022466,2]
[365621150,1749810642702,-366.11422186,0.00022466,2]
[365621151,1749810642713,-153.06190237,0.00022485,2]
[365621152,1749810642724,-500.0,0.00022485,2]
[365621153,1749810642734,-151.3354925,0.00022485,2]
[365621154,1749810642744,-207.4,0.00022485,2]
[365621155,1749810642753,-637.47389238,0.00022485,2]
[365621156,1749810642763,-5000.0,0.00022485,2]
[365621157,1749810642773,-500.0,0.00022485,2]
[365621158,1749810642783,-500.0,0.00022485,2]
[365621159,1749810642794,-500.0,0.00022485,2]
[365621160,1749810642803,-500.0,0.00022485,2]
[365621161,1749810642813,-500.0,0.00022485,2]
[365621162,1749810642823,-500.0,0.00022485,2]
[365621163,1749810642832,-252.75982885,0.00022485,2]
[365621164,1749810642841,-153.0,0.00022521,2]
[365621165,1749810642852,-3997.2,0.00022543,2]
[365621166,1749810642862,-699.27652527,0.00022555,7]
[365621167,1749810642871,-749.28,0.00022556,6]
[365621168,1749810642881,-1000.0,0.00022635,2]
[365621169,1749810642891,-749.28,0.00022656,4]
[365621170,1749810642901,-699.27652527,0.00022693,7]
[365621171,1749810642910,-1080.3,0.00022699,2]
[365621172,1749810642920,-3000.0,0.000227,2]
[365621173,1749810642929,-500.0,0.00022709,2]
[365621174,1749810642939,-500.0,0.00022709,2]
[365621175,1749810642948,-186.68,0.00022709,2]
[365621176,1749810642958,-3000.0,0.0002271,2]
[365621177,1749810642967,-3000.0,0.0002272,2]
[365621178,1749810642976,-798.16,0.00022729,3]
[365621179,1749810642985,-399.08,0.00022729,3]
[365621180,1749810642996,-3000.0,0.0002273,2]
[365621181,1749810643005,-1080.3,0.00022738,2]
[365621182,1749810643015,-493.37,0.00022739,2]
[365621183,1749810643025,-740.32,0.00022739,4]
[365621184,1749810643035,-460.0,0.00022739,4]
[365621185,1749810643044,-460.0,0.00022739,4]
[365621187,1749810643054,-705.23,0.00022739,4]
[365621188,1749810643064,-530.67,0.00022739,4]
[365621189,1749810643074,-839.17,0.00022739,4]
[365621190,1749810643083,-460.0,0.00022739,4]
[365621191,1749810643093,-460.0,0.00022739,4]
[365621192,1749810643103,-460.0,0.00022739,4]
[365621193,1749810643114,-460.0,0.00022739,4]
[365621194,1749810643123,-460.0,0.00022739,4]
[365621197,1749810643133,-934.01,0.00022739,4]
[365621198,1749810643143,-1790.77,0.00022739,4]
[365621200,1749810643152,-407.74,0.00022739,4]
[365621202,1749810643162,-601.68,0.00022739,4]
[365621203,1749810643171,-935.51,0.00022739,4]
[365621205,1749810643181,-853.76,0.00022739,4]
[365621206,1749810643190,-460.0,0.00022739,4]
[365621207,1749810643200,-528.79,0.00022739,4]
[365621208,1749810643209,-3000.0,0.0002274,2]
[365621209,1749810643219,-3000.0,0.0002275,2]
[365621210,1749810643228,-749.28,0.00022756,6]
[365621211,1749810643238,-185.95624799,0.00022758,2]
[365621212,1749810643247,-3000.0,0.0002276,2]
[365621213,1749810643257,-3000.0,0.0002277,2]
[365621214,1749810643266,-1080.3,0.00022779,2]
[365621215,1749810643276,-3894.504838,0.0002278,2]
[365621216,1749810643285,-229.78555783,0.00022785,2]
[365621217,1749810643294,-835.28007164,0.00022785,2]
[365621218,1749810643304,-160.0,0.00022785,2]
[365621219,1749810643314,-12531.02669373,0.00022785,2]
[365621220,1749810643324,-160.0,0.00022785,2]
[365621222,1749810643334,-424.32678023,0.00022786,2]
[365621224,1749810643344,-1000.0,0.000228,6]
[365621226,1749810643354,-699.27652527,0.00022831,8]
[365621228,1749810643364,-749.28,0.00022856,3]
[365621230,1749810643374,-1080.3,0.0002286,2]
[365621232,1749810643383,-655.847,0.00022861,2]
[365621234,1749810643393,-2160.0,0.00022861,2]
[365621236,1749810643402,-407.078,0.00022861,2]
[365621238,1749810643412,-160.0,0.00022887,3]
[365621240,1749810643422,-160.0,0.00022887,3]
[365621242,1749810643431,-749.28,0.00022956,6]
[365621244,1749810643440,-699.27652527,0.00022969,8]
[365621246,1749810643450,-159.71588906,0.00023,2]
[365621248,1749810643459,-3192.62,0.00023003,3]
[365621250,1749810643469,-1596.32,0.00023003,3]
[365621251,1749810643478,-151.0,0.00023003,7]
[365621253,1749810643487,-424.32678023,0.0002301,3]
[365621255,1749810643496,-160.0,0.0002301,3]
[365621257,1749810643506,-12531.02669373,0.0002301,3]
[365621259,1749810643515,-844.94977992,0.0002301,3]
[365621261,1749810643525,-160.0,0.0002301,3]
[365621263,1749810643534,-835.28007164,0.0002301,3]
[365621265,1749810643543,-493.37,0.00023013,2]
[365621267,1749810643553,-740.32,0.00023013,4]
[365621269,1749810643562,-460.0,0.00023013,4]
[365621272,1749810643571,-460.0,0.00023013,4]
[365621275,1749810643581,-705.23,0.00023013,4]
[365621277,1749810643590,-530.67,0.00023013,4]
[365621279,1749810643600,-839.17,0.00023013,4]
[365621281,1749810643611,-194.63,0.00023013,4]
[365621283,1749810643620,-460.0,0.00023013,4]
[365621286,1749810643629,-460.0,0.00023013,4]
[365621288,1749810643639,-460.0,0.00023013,4]
[365621290,1749810643649,-460.0,0.00023013,4]
[365621291,1749810643659,-934.01,0.00023013,4]
[365621292,1749810643668,-1790.77,0.00023013,4]
[365621294,1749810643677,-601.68,0.00023013,4]
[365621297,1749810643688,-935.51,0.00023013,4]
[365621299,1749810643698,-853.76,0.00023013,4]
[365621300,1749810643711,-460.0,0.00023013,4]
[365621302,1749810643723,-528.79,0.00023013,4]
[365621303,1749810643733,-161.44966308,0.00023014,2]
[365621304,1749810643742,-183.0,0.00023014,7]
[365621305,1749810643752,-5000.0,0.00023033,2]
[365621306,1749810643762,-800.0,0.00023044,2]
[365621307,1749810643771,-749.28,0.00023056,5]
[365621308,1749810643780,-364.664139,0.00023068,2]
[365621309,1749810643791,-347.3066863,0.00023068,2]
[365621310,1749810643801,-800.0,0.00023096,2]
[365621311,1749810643811,-699.27652527,0.00023107,8]
[365621312,1749810643821,-500.0,0.00023156,2]
[365621313,1749810643831,-500.0,0.00023156,2]
[365621314,1749810643840,-749.28,0.00023156,3]
[365621315,1749810643850,-1100.0,0.00023158,2]
[365621316,1749810643861,-1500.0,0.00023183,2]
[365621317,1749810643871,-1080.3,0.00023183,2]
[365621318,1749810643880,-150.119,0.00023184,2]
[365621319,1749810643890,-1100.0,0.000232,2]
[365621320,1749810643899,-699.27652527,0.00023245,8]
[365621321,1749810643909,-1100.0,0.00023248,2]
[365621322,1749810643919,-749.28,0.00023256,6]
[365621323,1749810643928,-500.0,0.00023257,2]
[365621324,1749810643938,-599.85,0.00023257,3]
[365621325,1749810643948,-500.0,0.0002328,2]
[365621326,1749810643958,-800.0,0.0002328,2]
[365621327,1749810643967,-493.37,0.00023287,2]
[365621328,1749810643977,-740.32,0.00023287,4]
[365621329,1749810643987,-193.36,0.00023287,4]
[365621330,1749810643996,-460.0,0.00023287,4]
[365621331,1749810644006,-705.23,0.00023287,4]
[365621332,1749810644016,-530.67,0.00023287,4]
[365621333,1749810644026,-839.17,0.00023287,4]
[365621335,1749810644035,-460.0,0.00023287,4]
[365621336,1749810644045,-460.0,0.00023287,4]
[365621337,1749810644055,-460.0,0.00023287,4]
[365621338,1749810644064,-460.0,0.00023287,4]
[365621339,1749810644074,-934.01,0.00023287,4]
[365621340,1749810644083,-1790.77,0.00023287,4]
[365621341,1749810644094,-601.68,0.00023287,4]
[365621342,1749810644104,-935.51,0.00023287,4]
[365621343,1749810644115,-853.76,0.00023287,4]
[365621344,1749810644125,-460.0,0.00023287,4]
[365621345,1749810644135,-528.79,0.00023287,4]
[365621346,1749810644145,-800.0,0.00023298,2]
[365621347,1749810644155,-189.65726187,0.00023305,2]
[365621348,1749810644165,-161.44966308,0.00023315,2]
[365621349,1749810644175,-408485.07971365,0.00023333,2]
[365621350,1749810644244,-137373.84080351,0.00023333,2]
[365621351,1749810644259,-114142.4590923,0.00023333,2]
[365621352,1749810644271,-11603.47998096,0.00023333,2]
[365621353,1749810644282,-8237.26694695,0.00023333,2]
[365621354,1749810644294,-17980.93034034,0.00023333,2]
[365621355,1749810644350,-9323.37071725,0.00023333,2]
[365621356,1749810644362,-1768.82851339,0.00023333,2]
[365621357,1749810644373,-2073.16201026,0.00023333,2]
[365621358,1749810644386,-4577.80416665,0.00023333,2]
[365621359,1749810644445,-0.0700131,0.00023333,2]
[365621360,1749810644461,-540.44922407,0.00023333,2]
[365621361,1749810644472,-3826.22311181,0.00023333,2]
[365621362,1749810644483,-24870.03361528,0.00023333,2]
[365621363,1749810644494,-129719.7817731,0.00023333,2]
[365621364,1749810644509,-20439.86842905,0.00023333,2]
[365621365,1749810644558,-177.67903207,0.00021793,2]
[365621366,1749810644567,-424.32678023,0.00022785,2]
[365621367,1749810644577,-2737.66084977,0.00023333,2]
[365621368,1749810644589,-891.15,0.00023333,2]
[365621369,1749810644600,-423.89412164,0.00023333,2]
[365621370,1749810644612,-872.23335984,0.00023333,2]
[365621371,1749810644624,-251.256,0.00023333,2]
[365621372,1749810645933,-153.0,0.00023333,2]
[365621410,1749810646596,-965.034,0.00022771,2]
[365621412,1749810646606,-4273.35861736,0.00023333,2]
[365621464,1749810647109,-241.0512,0.00023333,2]
[365622097,1749810740994,851.0,0.00024657,120]
[365622103,1749810964946,466.58426059,0.000245,120]
[365622105,1749810993283,516.51616936,0.000245,120]
[365622319,1749811122000,6287.68153543,0.00024996,60]
[365622321,1749811129811,1180.6,0.00024996,60]
[365622323,1749811170770,200.0,0.00024069,120]
[365622324,1749811171758,269.93,0.0002328,120]
[365622325,1749811172205,265.11,0.0002328,120]
[365622327,1749811186437,500.0,0.000238,120]
[365622328,1749811187214,500.0,0.000238,120]
[365622329,1749811187987,500.0,0.000238,120]
[365622330,1749811188855,500.0,0.000238,120]
[365622331,1749811189959,500.0,0.000238,120]
[365622332,1749811190756,500.0,0.000238,120]
[365622333,1749811191533,500.0,0.000238,120]
[365622334,1749811192298,500.0,0.000238,120]
[365622335,1749811193099,500.0,0.000238,120]
[365622336,1749811193853,500.0,0.000238,120]
[365622337,1749811194639,500.0,0.000238,120]
[365622338,1749811195422,500.0,0.000238,120]
[365622339,1749811196212,500.0,0.000238,120]
[365622340,1749811197002,500.0,0.000238,120]
[365622341,1749811197787,500.0,0.000238,120]
[365622342,1749811198563,500.0,0.000238,120]
[365622343,1749811199423,500.0,0.000238,120]
[365622344,1749811200109,500.0,0.000238,120]
[365622345,1749811200903,500.0,0.000238,120]
[365622346,1749811201701,500.0,0.000238,120]
[365622347,1749811202497,113.16810554,0.000238,120]
[365622419,1749811382113,2000.0,0.00019649,120]
[365622448,1749811490660,165.141639,0.00013699,2]
[365622474,1749811673471,2341.64,0.00024998,60]
[365622518,1749811778473,151.0,0.0001369,2]
[365622571,1749811832813,-1346.99343531,0.000187,10]
[365622572,1749811832824,-184.977257,0.00019927,2]
[365622573,1749811832834,-300.0,0.00019998,2]
[365622575,1749811832843,-300.0,0.00019998,2]
[365622577,1749811832853,-1000.0,0.00019999,2]
[365622579,1749811832863,-1000.0,0.00019999,2]
[365622580,1749811832874,-1000.0,0.00019999,2]
[365622581,1749811832883,-1000.0,0.00019999,2]
[365622582,1749811832892,-1868.95025736,0.00020039,2]
[365622583,1749811832902,-20703.61639564,0.00020051,2]
[365622584,1749811832914,-2375.36927957,0.00020051,2]
[365622585,1749811832927,-1821.01432479,0.00020051,2]
[365622586,1749811832936,-225.4481789,0.00020425,2]
[365622587,1749811832946,-193.664,0.00020499,2]
[365622588,1749811832955,-1293.33,0.00020701,2]
[365622589,1749811832965,-165.141639,0.00020951,2]
[365622590,1749811832975,-170.0,0.0002096,2]
[365622591,1749811832984,-500.0,0.00020964,2]
[365622592,1749811832993,-500.0,0.00021084,2]
[365622593,1749811833003,-186.68,0.00021084,2]
[365622594,1749811833012,-1000.0,0.00021084,2]
[365622595,1749811833021,-1000.0,0.00021094,2]
[365622596,1749811833031,-460.0,0.00021095,4]
[365622597,1749811833040,-460.0,0.00021095,4]
[365622598,1749811833050,-440.0,0.00021095,4]
[365622599,1749811833060,-460.0,0.00021095,4]
[365622600,1749811833070,-460.0,0.00021095,4]
[365622601,1749811833080,-460.0,0.00021095,4]
[365622602,1749811833089,-468.64,0.00021095,2]
[365622603,1749811833099,-653.6,0.00021095,4]
[365622604,1749811833109,-460.0,0.00021095,4]
[365622605,1749811833122,-720.2,0.00021095,2]
[365622606,1749811833133,-460.0,0.00021095,4]
[365622607,1749811833144,-460.0,0.00021095,4]
[365622608,1749811833154,-460.0,0.00021095,4]
[365622609,1749811833165,-460.0,0.00021095,4]
[365622610,1749811833175,-587.7,0.00021095,4]
[365622611,1749811833186,-460.0,0.00021095,4]
[365622612,1749811833195,-460.0,0.00021095,4]
[365622613,1749811833208,-78.62585731,0.00021095,4]
[365622640,1749811838681,-381.37414269,0.00021095,4]
[365622642,1749811838691,-699.31,0.00021095,4]
[365622644,1749811838703,-460.0,0.00021095,4]
[365622646,1749811838712,-460.0,0.00021095,4]
[365622648,1749811838721,-400.0,0.00021095,4]
[365622650,1749811838731,-460.0,0.00021095,4]
[365622652,1749811838741,-585.95,0.00021095,4]
[365622654,1749811838751,-778.34,0.00021095,4]
[365622656,1749811838762,-460.0,0.00021095,4]
[365622658,1749811838771,-1492.31,0.00021095,4]
[365622660,1749811838780,-400.0,0.00021095,4]
[365622662,1749811838789,-779.59,0.00021095,4]
[365622664,1749811838799,-230.60514596,0.00021095,4]
[365622666,1749811838809,-711.46,0.00021095,4]
[365622668,1749811838819,-460.0,0.00021095,4]
[365622670,1749811838828,-506.51,0.00021095,4]
[365622672,1749811838837,-460.0,0.00021095,4]
[365622674,1749811838847,-460.0,0.00021095,4]
[365622676,1749811838856,-1000.0,0.00021232,2]
[365622678,1749811838866,-720.2,0.00021368,2]
[365622680,1749811838875,-1000.0,0.00021368,2]
[365622682,1749811838887,-460.0,0.00021369,4]
[365622684,1749811838897,-460.0,0.00021369,4]
[365622686,1749811838907,-460.0,0.00021369,4]
[365622688,1749811838916,-420.0,0.00021369,4]
[365622690,1749811838925,-460.0,0.00021369,4]
[365622692,1749811838935,-468.64,0.00021369,2]
[365622695,1749811838944,-653.6,0.00021369,4]
[365622697,1749811838954,-460.0,0.00021369,4]
[365622699,1749811838963,-420.0,0.00021369,4]
[365622701,1749811838973,-460.0,0.00021369,4]
[365622703,1749811838983,-587.7,0.00021369,4]
[365622705,1749811838992,-460.0,0.00021369,4]
[365622707,1749811839001,-460.0,0.00021369,4]
[365622709,1749811839011,-460.0,0.00021369,4]
[365622711,1749811839020,-699.31,0.00021369,4]
[365622713,1749811839029,-460.0,0.00021369,4]
[365622715,1749811839038,-460.0,0.00021369,4]
[365622717,1749811839047,-778.34,0.00021369,4]
[365622719,1749811839057,-460.0,0.00021369,4]
[365622721,1749811839066,-1492.31,0.00021369,4]
[365622723,1749811839076,-779.59,0.00021369,4]
[365622725,1749811839085,-711.46,0.00021369,4]
[365622727,1749811839094,-460.0,0.00021369,4]
[365622729,1749811839103,-506.51,0.00021369,4]
[365622731,1749811839112,-460.0,0.00021369,4]
[365622733,1749811839123,-460.0,0.00021369,4]
[365622735,1749811839134,-168.0,0.00021489,2]
[365622737,1749811839144,-500.0,0.0002151,2]
[365622739,1749811839154,-500.0,0.0002151,2]
[365622741,1749811839164,-258.6540239,0.0002151,2]
[365622742,1749811839174,-1000.0,0.00021589,2]
[365622745,1749811839184,-500.0,0.00021609,2]
[365622747,1749811839193,-599.85,0.00021632,3]
[365622749,1749811839206,-720.2,0.00021642,2]
[365622750,1749811839216,-1000.0,0.00021642,2]
[365622752,1749811839225,-400.0,0.00021643,4]
[365622754,1749811839234,-407.63238877,0.00021643,4]
[365622756,1749811839243,-400.0,0.00021643,4]
[365622758,1749811839253,-426.2216396,0.00021643,4]
[365622760,1749811839262,-468.64,0.00021643,2]
[365622762,1749811839271,-653.6,0.00021643,4]
[365622764,1749811839280,-400.0,0.00021643,4]
[365622766,1749811839290,-460.0,0.00021643,4]
[365622768,1749811839300,-587.7,0.00021643,4]
[365622770,1749811839309,-460.0,0.00021643,4]
[365622772,1749811839319,-460.0,0.00021643,4]
[365622774,1749811839328,-460.0,0.00021643,4]
[365622776,1749811839338,-699.31,0.00021643,4]
[365622778,1749811839347,-460.0,0.00021643,4]
[365622780,1749811839356,-460.0,0.00021643,4]
[365622782,1749811839365,-778.34,0.00021643,4]
[365622784,1749811839375,-460.0,0.00021643,4]
[365622786,1749811839386,-1492.31,0.00021643,4]
[365622788,1749811839395,-779.59,0.00021643,4]
[365622790,1749811839405,-711.46,0.00021643,4]
[365622793,1749811839425,-460.0,0.00021643,4]
[365622795,1749811839435,-506.51,0.00021643,4]
[365622797,1749811839445,-460.0,0.00021643,4]
[365622799,1749811839455,-460.0,0.00021643,4]
[365622801,1749811839465,-2586.66,0.00021687,2]
[365622804,1749811839475,-153.0,0.00021699,2]
[365622806,1749811839485,-168.0,0.00021739,2]
[365622808,1749811839494,-420.0,0.00021776,2]
[365622810,1749811839504,-420.0,0.00021776,2]
[365622812,1749811839513,-168.0,0.00021839,2]
[365622814,1749811839523,-1000.0,0.00021889,2]
[365622816,1749811839532,-451.03713763,0.00021889,2]
[365622819,1749811839551,-548.96286237,0.00021889,2]